fUSD/lending_fUSD_20260508
["ID","MTS","AMOUNT","RATE_DAILY","PERIOD"]
[421797495,1778172644000,-671.85656189,0.00033999,10]
[421797485,1778172644000,-1055.51550585,0.000339,120]
[421797482,1778172644000,-331.314243,0.000339,120]
[421797486,1778172644000,-11370.50098433,0.000339,2]
[421797483,1778172644000,-1289.86785424,0.000339,2]
[421797488,1778172644000,-210.4144573,0.000339,6]
[421797487,1778172644000,-641.61753751,0.000339,2]
[421797484,1778172644000,-500.0,0.000339,12]
[421797492,1778172644000,-171.27841917,0.0003399,2]
[421797489,1778172644000,-6634.05374072,0.000339,2]
[421797491,1778172644000,-171.27841917,0.0003399,2]
[421797503,1778172644000,-1285.49221552,0.0002779,10]
[421797502,1778172644000,-371731.75025357,0.00034,120]
[421797500,1778172644000,-254308.23444707,0.00034,120]
[421797501,1778172644000,-2979.9716,0.00034,120]
[421797497,1778172644000,-300.0,0.00033999,10]
[421797498,1778172644000,-314.14399847,0.00034,31]
[421797490,1778172644000,-250.0,0.00033973,5]
[421797494,1778172644000,-300.0,0.00033999,10]
[421797499,1778172644000,-4192465.21318574,0.00034,120]
[421797496,1778172644000,-300.0,0.00033999,10]
[421797508,1778172646000,-3257.99778448,0.0002779,10]
[421797515,1778172646000,-148838.67352265,0.00034,120]
[421797513,1778172646000,-6136.026,0.00030412,2]
[421797510,1778172646000,-151.22,0.00028737,7]
[421797514,1778172646000,-6044.0,0.00033412,2]
[421797512,1778172646000,-151.22,0.00028795,2]
[421797511,1778172646000,-151.22,0.00028766,30]
[421797509,1778172646000,-151.22,0.00028708,2]
[421797516,1778172647000,-209.56355865,0.00022638,2]
[421797517,1778172647000,-1512.52629103,0.00034,120]
[421797518,1778172647000,-49165.8801043,0.00034,120]
[421797520,1778172667000,175.46,0.00028661,120]
[421797519,1778172667000,500.0,0.00028661,120]
[421797522,1778172679000,500.0,0.00028661,120]
[421797521,1778172679000,500.0,0.00028661,120]
[421797524,1778172680000,500.0,0.00028661,120]
[421797523,1778172680000,500.0,0.00028661,120]
[421797526,1778172681000,645.94484327,0.00028661,120]
[421797525,1778172681000,500.0,0.00028661,120]
[421797528,1778172774000,500.0,0.00028661,120]
[421797529,1778172775000,500.0,0.00028661,120]
[421797530,1778172775000,500.0,0.00028661,120]
[421797531,1778172775000,449.04887241,0.00028661,120]
[421797532,1778172893000,3089.8559,0.000301,120]
[421797534,1778172903000,500.0,0.00028661,120]
[421797533,1778172903000,500.0,0.00028661,120]
[421797535,1778173200000,8634.7,0.00022,30]
[421797553,1778173492000,301.42,0.00025868,120]
[421797554,1778173493000,301.42,0.00028742,120]
[421797565,1778173704000,10000.0,0.00030137,120]
[421797566,1778173724000,10000.0,0.00030137,120]
[421797567,1778173744000,10000.0,0.00030137,120]
[421797568,1778173765000,10000.0,0.00030137,120]
[421797570,1778173782000,10000.0,0.00030137,120]
[421797572,1778173803000,166.41,0.00021951,30]
[421797614,1778173832000,-175.0,0.00021132,2]
[421797616,1778173832000,-433.0,0.00021132,2]
[421797611,1778173832000,-6054.34,0.00021129,2]
[421797610,1778173832000,-12154.2,0.00021129,2]
[421797620,1778173832000,-3384.94,0.00021273,2]
[421797621,1778173832000,-821.92,0.00021273,2]
[421797618,1778173832000,-4000.0,0.00021169,2]
[421797617,1778173832000,-25479.34,0.00021132,2]
[421797622,1778173832000,-4000.0,0.00021698,2]
[421797619,1778173832000,-166.41,0.00021232,2]
[421797645,1778173832000,-500.0,0.00022252,2]
[421797635,1778173832000,-28162.30046684,0.00022024,2]
[421797637,1778173832000,-2881.72833783,0.00022124,2]
[421797639,1778173832000,-166.31,0.00022148,2]
[421797627,1778173832000,-429.0,0.00022,2]
[421797626,1778173832000,-283.0,0.00022,2]
[421797630,1778173832000,-180.0,0.00022,2]
[421797623,1778173832000,-420.0,0.00021777,2]
[421797625,1778173832000,-1000.0,0.00021999,2]
[421797612,1778173832000,-9999.99,0.00021129,2]
[421797624,1778173832000,-1680.0,0.0002188,2]
[421797615,1778173832000,-999.99,0.00021132,2]
[421797598,1778173832000,-157.0,0.0002,2]
[421797609,1778173832000,-472.0,0.00021129,2]
[421797594,1778173832000,-300.0,0.00019999,2]
[421797595,1778173832000,-283.0,0.0002,2]
[421797589,1778173832000,-164.5,0.00016438,2]
[421797592,1778173832000,-1200.0,0.00019998,2]
[421797593,1778173832000,-300.0,0.00019999,2]
[421797590,1778173832000,-164.5,0.0001841,2]
[421797591,1778173832000,-154.09,0.00019026,2]
[421797596,1778173832000,-429.0,0.0002,2]
[421797628,1778173832000,-164881.57730713,0.00022,4]
[421797613,1778173832000,-200.0,0.00021132,2]
[421797608,1778173832000,-9999.99,0.00021,2]
[421797600,1778173832000,-164.5,0.00020381,2]
[421797602,1778173832000,-283.0,0.00021,2]
[421797601,1778173832000,-166.41,0.00020512,2]
[421797599,1778173832000,-180.0,0.0002,2]
[421797604,1778173832000,-163.0,0.00021,2]
[421797606,1778173832000,-4999.99,0.00021,2]
[421797607,1778173832000,-9999.99,0.00021,2]
[421797603,1778173832000,-429.0,0.00021,2]
[421797605,1778173832000,-180.0,0.00021,2]
[421797597,1778173832000,-7729.86,0.0002,2]
[421797633,1778173832000,-1998.0,0.00022,2]
[421797658,1778173832000,-500.0,0.00022252,2]
[421797643,1778173832000,-4000.0,0.00022227,2]
[421797641,1778173832000,-150.0,0.00022224,2]
[421797701,1778173832000,-180.0,0.00023,2]
[421797703,1778173832000,-387.74,0.00023124,2]
[421797705,1778173832000,-140950.98,0.00023124,2]
[421797710,1778173832000,-504.64121284,0.00023173,2]
[421797706,1778173832000,-1901.16,0.00023124,2]
[421797709,1778173832000,-500.0,0.00023173,2]
[421797712,1778173832000,-500.0,0.00023173,2]
[421797714,1778173832000,-500.0,0.00023173,2]
[421797697,1778173832000,-283.0,0.00023,2]
[421797715,1778173832000,-500.0,0.00023173,2]
[421797719,1778173832000,-300.0,0.000236,8]
[421797722,1778173832000,-1000.0,0.000238,8]
[421797718,1778173832000,-28162.30046684,0.00023457,2]
[421797720,1778173832000,-600.0,0.000237,8]
[421797724,1778173832000,-2351.0,0.0002394,2]
[421797717,1778173832000,-2881.72833775,0.00023432,2]
[421797721,1778173832000,-587.0,0.00023712,2]
[421797725,1778173832000,-166.31,0.00023976,2]
[421797723,1778173832000,-1300.0,0.000239,8]
[421797716,1778173832000,-4000.0,0.00023286,2]
[421797695,1778173832000,-301.42,0.00022994,2]
[421797699,1778173832000,-429.0,0.00023,2]
[421797690,1778173832000,-28162.30046684,0.0002274,2]
[421797648,1778173832000,-500.0,0.00022252,2]
[421797650,1778173832000,-500.0,0.00022252,2]
[421797654,1778173832000,-500.0,0.00022252,2]
[421797652,1778173832000,-188.91881496,0.00022252,2]
[421797656,1778173832000,-500.0,0.00022252,2]
[421797692,1778173832000,-4000.0,0.00022757,2]
[421797663,1778173832000,-500.0,0.00022252,2]
[421797676,1778173832000,-500.0,0.00022252,2]
[421797678,1778173832000,-349.31894238,0.00022252,2]
[421797661,1778173832000,-500.0,0.00022252,2]
[421797682,1778173832000,-500.0,0.00022252,2]
[421797680,1778173832000,-500.0,0.00022252,2]
[421797686,1778173832000,-1120.42,0.00022466,2]
[421797688,1778173832000,-166.41,0.00022671,30]
[421797674,1778173832000,-500.0,0.00022252,2]
[421797672,1778173832000,-500.0,0.00022252,2]
[421797665,1778173832000,-500.0,0.00022252,2]
[421797667,1778173832000,-500.0,0.00022252,2]
[421797684,1778173832000,-164.5,0.00022353,2]
[421797670,1778173832000,-500.0,0.00022252,2]
[421797733,1778173833000,-885.72,0.00024097,2]
[421797745,1778173833000,-171.27841917,0.00024214,2]
[421797744,1778173833000,-280.72522216,0.00024174,2]
[421797740,1778173833000,-1933.404,0.00024142,6]
[421797743,1778173833000,-190.78470893,0.00024173,2]
[421797741,1778173833000,-224.18959406,0.00024173,2]
[421797739,1778173833000,-5000.0,0.00024124,2]
[421797731,1778173833000,-4341.29675177,0.0002405,2]
[421797734,1778173833000,-4795.24,0.00024097,2]
[421797742,1778173833000,-28162.30046684,0.00024173,2]
[421797730,1778173833000,-27015.2459,0.00024045,2]
[421797732,1778173833000,-2500.0,0.00024073,2]
[421797729,1778173833000,-180.0,0.00024,2]
[421797738,1778173833000,-214.63993676,0.00024105,2]
[421797727,1778173833000,-283.0,0.00024,2]
[421797737,1778173833000,-207.9261601,0.00024105,2]
[421797736,1778173833000,-177.0,0.00024097,2]
[421797728,1778173833000,-429.0,0.00024,2]
[421797726,1778173833000,-1192.09539059,0.00023997,2]
[421797749,1778173833000,-628.21613967,0.00024223,2]
[421797735,1778173833000,-150.0,0.00024097,2]
[421797750,1778173833000,-500.0,0.00024223,2]
[421797760,1778173833000,-610.44814184,0.00024224,2]
[421797746,1778173833000,-500.0,0.00024223,2]
[421797748,1778173833000,-500.0,0.00024223,2]
[421797768,1778173833000,-11958.45,0.00024224,2]
[421797769,1778173833000,-2003.26428485,0.00024224,2]
[421797765,1778173833000,-98583.73090331,0.00024224,2]
[421797764,1778173833000,-392.33619166,0.00024224,2]
[421797761,1778173833000,-265299.09696137,0.00024224,2]
[421797767,1778173833000,-551.21250411,0.00024224,2]
[421797763,1778173833000,-1199.87103853,0.00024224,2]
[421797762,1778173833000,-1703.47773723,0.00024224,2]
[421797756,1778173833000,-1306.980303,0.00024224,2]
[421797766,1778173833000,-301.24318494,0.00024224,2]
[421797757,1778173833000,-305.87152824,0.00024224,2]
[421797770,1778173833000,-280.72,0.00024224,2]
[421797747,1778173833000,-184.12787308,0.00024223,2]
[421797751,1778173833000,-511.5149938,0.00024223,2]
[421797754,1778173833000,-819.1793169,0.00024224,2]
[421797752,1778173833000,-150.0,0.00024223,2]
[421797755,1778173833000,-326.848,0.00024224,2]
[421797759,1778173833000,-367.5852002,0.00024224,2]
[421797758,1778173833000,-3476.22377999,0.00024224,2]
[421797753,1778173833000,-135087.74108151,0.00024224,2]
[421797771,1778173834000,4272.75,0.00030137,120]
[421797791,1778173838000,-2881.72833775,0.00024741,2]
[421797796,1778173838000,-49965.0,0.000251,2]
[421797789,1778173838000,-161.96,0.00024658,2]
[421797794,1778173838000,-192.0,0.00025,2]
[421797797,1778173838000,-4341.29675173,0.00025144,2]
[421797795,1778173838000,-708.92938778,0.00025044,2]
[421797799,1778173838000,-160.87,0.00025266,7]
[421797798,1778173838000,-161.96,0.00025266,7]
[421797804,1778173838000,-166.31,0.00025803,2]
[421797805,1778173838000,-1192.09539056,0.00025826,2]
[421797802,1778173838000,-3384.94,0.00025786,2]
[421797793,1778173838000,-433.0,0.00025,2]
[421797806,1778173838000,-5000.0,0.0002585,2]
[421797790,1778173838000,-160.87,0.00024658,2]
[421797779,1778173838000,-500.98344582,0.00024273,2]
[421797784,1778173838000,-164.5,0.00024324,2]
[421797788,1778173838000,-165.36,0.00024658,2]
[421797785,1778173838000,-1000.0,0.00024646,2]
[421797787,1778173838000,-1000.0,0.00024658,2]
[421797783,1778173838000,-255.09,0.000243,7]
[421797782,1778173838000,-3137.14735723,0.00024273,2]
[421797781,1778173838000,-500.0,0.00024273,2]
[421797792,1778173838000,-294.0,0.00025,2]
[421797780,1778173838000,-401.04584299,0.00024273,2]
[421797800,1778173838000,-166.64,0.00025385,2]
[421797776,1778173838000,-412.5,0.00021132,2]
[421797777,1778173838000,-250.0,0.00023013,2]
[421797778,1778173838000,-500.81624123,0.00024273,2]
[421797775,1778173838000,-354.12,0.000164,2]
[421797786,1778173838000,-192.28,0.00024646,2]
[421797801,1778173838000,-5529.0,0.000257,3]
[421797803,1778173838000,-821.92,0.00025786,2]
[421797808,1778173838000,-160.87,0.00025875,30]
[421797842,1778173838000,-161.96,0.00027701,30]
[421797818,1778173838000,-161.96,0.00026484,2]
[421797840,1778173838000,-166.64,0.0002748,2]
[421797839,1778173838000,-214.63993676,0.000274,7]
[421797835,1778173838000,-5962.3,0.00027397,10]
[421797838,1778173838000,-16026.4,0.000274,7]
[421797837,1778173838000,-480.21,0.000274,7]
[421797836,1778173838000,-500.0,0.00027397,5]
[421797832,1778173838000,-2881.72833775,0.00027358,2]
[421797829,1778173838000,-503.0,0.00027137,2]
[421797833,1778173838000,-3751.97,0.00027397,10]
[421797826,1778173838000,-160.87,0.00027093,7]
[421797831,1778173838000,-4341.29675173,0.00027333,2]
[421797834,1778173838000,-7154.76,0.00027397,10]
[421797827,1778173838000,-503.0,0.00027137,2]
[421797841,1778173838000,-1192.09539056,0.00027655,2]
[421797823,1778173838000,-279.700248,0.00026849,14]
[421797830,1778173838000,-274.39459472,0.000273,2]
[421797816,1778173838000,-255.09,0.000263,7]
[421797807,1778173838000,-161.96,0.00025875,30]
[421797809,1778173838000,-1901.16,0.00026014,2]
[421797810,1778173838000,-2881.72833775,0.00026049,2]
[421797811,1778173838000,-641.61753751,0.00026139,2]
[421797812,1778173838000,-1949.0,0.00026193,2]
[421797817,1778173838000,-5529.0,0.000263,5]
[421797813,1778173838000,-210.4144573,0.00026196,5]
[421797814,1778173838000,-4341.29675173,0.00026239,2]
[421797820,1778173838000,-160.87,0.00026484,2]
[421797822,1778173838000,-224.18959402,0.00026749,2]
[421797824,1778173838000,-197.588858,0.00026852,14]
[421797815,1778173838000,-164.5,0.00026296,2]
[421797825,1778173838000,-161.96,0.00027093,7]
[421797909,1778173839000,-224.18959402,0.00029324,2]
[421797906,1778173839000,-153.23,0.00029232,2]
[421797902,1778173839000,-376.36,0.000292,7]
[421797904,1778173839000,-154.27,0.00029232,2]
[421797911,1778173839000,-1192.09539056,0.00029484,2]
[421797913,1778173839000,-4341.29675173,0.00029522,2]
[421797892,1778173839000,-152.0,0.00028973,7]
[421797914,1778173839000,-150.0,0.00029534,2]
[421797898,1778173839000,-153.21,0.00029135,30]
[421797900,1778173839000,-154.25,0.00029136,30]
[421797916,1778173839000,-166.64,0.00029575,2]
[421797907,1778173839000,-1143.57,0.000293,14]
[421797927,1778173839000,-500.0,0.00029863,2]
[421797925,1778173839000,-296.13355034,0.00029863,2]
[421797921,1778173839000,-150.0,0.00029863,2]
[421797932,1778173839000,-500.0,0.00029863,2]
[421797930,1778173839000,-500.0,0.00029863,2]
[421797918,1778173839000,-503.0,0.0002978,4]
[421797920,1778173839000,-150.0,0.00029863,2]
[421797934,1778173839000,-500.0,0.00029863,2]
[421797923,1778173839000,-150.0,0.00029863,2]
[421797939,1778173839000,-795.32704884,0.0003,2]
[421797936,1778173839000,-374.83062335,0.00029863,2]
[421797937,1778173839000,-2881.72833775,0.00029975,2]
[421797941,1778173839000,-48516.14150271,0.0003,60]
[421797952,1778173839000,-1068.61,0.000302,30]
[421797897,1778173839000,-154.25,0.00029039,7]
[421797929,1778173839000,-500.0,0.00029863,2]
[421797895,1778173839000,-153.21,0.00029038,7]
[421797948,1778173839000,-1068.61,0.000301,30]
[421797890,1778173839000,-152.0,0.00028973,7]
[421797844,1778173839000,-1143.57,0.000278,14]
[421797845,1778173839000,-376.36,0.000278,7]
[421797847,1778173839000,-168.051492,0.00027974,14]
[421797846,1778173839000,-500.0,0.000278,7]
[421797848,1778173839000,-2974.574294,0.00028,60]
[421797843,1778173839000,-160.87,0.00027701,30]
[421797849,1778173839000,-503.0,0.00028018,2]
[421797853,1778173839000,-160.87,0.0002831,2]
[421797851,1778173839000,-161.96,0.0002831,2]
[421797855,1778173839000,-4341.29675173,0.00028428,2]
[421797862,1778173839000,-153.21,0.00028651,2]
[421797864,1778173839000,-154.25,0.00028652,2]
[421797861,1778173839000,-2000.0,0.00028562,2]
[421797850,1778173839000,-164.5,0.00028267,2]
[421797868,1778173839000,-153.21,0.00028747,7]
[421797858,1778173839000,-154.09,0.00028538,2]
[421797870,1778173839000,-154.25,0.00028748,7]
[421797866,1778173839000,-2881.72833775,0.00028666,2]
[421797871,1778173839000,-255.09,0.000288,7]
[421797873,1778173839000,-480.21,0.000288,7]
[421797876,1778173839000,-153.21,0.00028844,30]
[421797875,1778173839000,-16026.4,0.000288,7]
[421797883,1778173839000,-161.96,0.00028919,7]
[421797881,1778173839000,-1901.16,0.00028905,2]
[421797878,1778173839000,-154.25,0.00028845,30]
[421797888,1778173839000,-154.25,0.00028942,2]
[421797885,1778173839000,-160.87,0.00028919,7]
[421797880,1778173839000,-503.0,0.00028899,3]
[421797887,1778173839000,-153.21,0.00028941,2]
[421797893,1778173839000,-3459.35902274,0.00029,4]
[421797943,1778173839000,-1068.61,0.0003,30]
[421797953,1778173839000,-164.5,0.00030239,2]
[421797955,1778173839000,-480.21,0.000304,7]
[421798020,1778173839000,-157.0,0.00031141,30]
[421798022,1778173839000,-532.0,0.00031197,30]
[421798024,1778173839000,-150.0,0.0003123,7]
[421798007,1778173839000,-283.0,0.0003113,30]
[421798012,1778173839000,-154.0,0.0003113,30]
[421798009,1778173839000,-429.0,0.0003113,30]
[421798025,1778173839000,-2881.72833775,0.00031283,2]
[421798027,1778173839000,-1192.09539056,0.00031313,2]
[421798011,1778173839000,-157.0,0.0003113,30]
[421798014,1778173839000,-180.0,0.0003113,30]
[421798030,1778173839000,-376.36,0.000314,7]
[421798032,1778173839000,-150.0,0.0003145,7]
[421798043,1778173839000,-150.0,0.00031607,7]
[421798034,1778173839000,-150.0,0.00031481,7]
[421798036,1778173839000,-1000.0,0.000315,7]
[421798038,1778173839000,-707.0,0.00031527,30]
[421798039,1778173839000,-614.0,0.00031527,30]
[421798041,1778173839000,-503.0,0.00031542,6]
[421798050,1778173839000,-150.0,0.00031733,7]
[421798048,1778173839000,-150.0,0.00031733,7]
[421798046,1778173839000,-4341.29675173,0.00031711,2]
[421798029,1778173839000,-150.0,0.00031356,7]
[421798045,1778173839000,-301.42,0.00031617,120]
[421798052,1778173839000,-150.0,0.00031733,7]
[421798053,1778173839000,-150.0,0.00031733,7]
[421798055,1778173839000,-180.0,0.00031784,8]
[421798061,1778173839000,-224.18959402,0.000319,2]
[421798059,1778173839000,-150.0,0.00031859,7]
[421797957,1778173839000,-16026.4,0.000304,7]
[421798016,1778173839000,-155.0,0.00031132,30]
[421798018,1778173839000,-152.0,0.00031132,30]
[421798057,1778173839000,-1901.16,0.00031795,2]
[421797999,1778173839000,-150.0,0.00030978,7]
[421798006,1778173839000,-154.0,0.0003113,30]
[421797959,1778173839000,-150.0,0.000306,7]
[421797946,1778173839000,-214.63993676,0.0003006,3]
[421797950,1778173839000,-642.78057809,0.0003013,2]
[421797960,1778173839000,-150.0,0.000306,7]
[421797962,1778173839000,-150.0,0.000306,7]
[421797964,1778173839000,-150.0,0.000306,7]
[421797976,1778173839000,-503.0,0.00030661,5]
[421797979,1778173839000,-150.0,0.00030726,7]
[421797977,1778173839000,-500.0,0.00030699,120]
[421797965,1778173839000,-150.0,0.000306,7]
[421797983,1778173839000,-150.0,0.00030852,7]
[421797969,1778173839000,-150.0,0.000306,7]
[421797967,1778173839000,-150.0,0.000306,7]
[421797944,1778173839000,-5019.06664194,0.00030057,3]
[421797984,1778173839000,-637.515,0.00030921,2]
[421797981,1778173839000,-255.09,0.000308,7]
[421797997,1778173839000,-3626.0,0.00030921,2]
[421797994,1778173839000,-1267.0,0.00030921,2]
[421798002,1778173839000,-150.0,0.00031011,2]
[421798004,1778173839000,-150.0,0.00031104,7]
[421797990,1778173839000,-3537.0,0.00030921,2]
[421798001,1778173839000,-214.63993676,0.00031,7]
[421797988,1778173839000,-1364.169,0.00030921,2]
[421797992,1778173839000,-150.258,0.00030921,2]
[421797986,1778173839000,-925.0,0.00030921,2]
[421797972,1778173839000,-150.0,0.000306,7]
[421797971,1778173839000,-150.0,0.000306,7]
[421797974,1778173839000,-4341.29675173,0.00030617,2]
[421797996,1778173839000,-419.064,0.00030921,2]
[421798150,1778173840000,-150.0,0.00032741,7]
[421798148,1778173840000,-150.0,0.00032615,7]
[421798138,1778173840000,-150.0,0.00032489,7]
[421798141,1778173840000,-150.0,0.00032562,2]
[421798135,1778173840000,-503.0,0.00032423,7]
[421798136,1778173840000,-708.92938776,0.00032472,2]
[421798129,1778173840000,-150.0,0.000323,7]
[421798130,1778173840000,-2000.0,0.00032301,30]
[421798161,1778173840000,-307.0,0.000329,2]
[421798132,1778173840000,-150.0,0.00032363,7]
[421798146,1778173840000,-480.21,0.000326,7]
[421798127,1778173840000,-150.0,0.000323,7]
[421798159,1778173840000,-150.0,0.00032867,7]
[421798163,1778173840000,-1000.0,0.000329,2]
[421798157,1778173840000,-150.0,0.00032867,7]
[421798165,1778173840000,-2000.0,0.000329,7]
[421798151,1778173840000,-4341.29675173,0.00032806,2]
[421798155,1778173840000,-150.0,0.00032867,7]
[421798167,1778173840000,-150.0,0.00032993,7]
[421798169,1778173840000,-279.53402724,0.00033,120]
[421798171,1778173840000,-1442.29936822,0.00033,120]
[421798184,1778173840000,-398.0,0.00033,14]
[421798187,1778173840000,-641.6175375,0.0003302,2]
[421798190,1778173840000,-210.41445728,0.00033048,6]
[421798125,1778173840000,-150.0,0.000323,7]
[421798191,1778173840000,-255.09,0.000331,7]
[421798153,1778173840000,-150.0,0.00032867,7]
[421798123,1778173840000,-416.94,0.00032281,10]
[421798100,1778173840000,-283.0,0.0003213,30]
[421798115,1778173840000,-150.0,0.00032237,7]
[421798173,1778173840000,-185.2344615,0.00033,120]
[421798075,1778173840000,-185.2344615,0.00032,120]
[421798070,1778173840000,-279.53402724,0.00032,120]
[421798067,1778173840000,-150.0,0.00031985,7]
[421798073,1778173840000,-1442.29936822,0.00032,120]
[421798077,1778173840000,-199.98690457,0.00032,120]
[421798079,1778173840000,-192.91808237,0.00032,120]
[421798090,1778173840000,-1505.18850619,0.00032,120]
[421798092,1778173840000,-17182.14363141,0.00032,3]
[421798094,1778173840000,-195.458427,0.00032,120]
[421798081,1778173840000,-516.03424731,0.00032,120]
[421798096,1778173840000,-150.0,0.00032111,7]
[421798117,1778173840000,-483.0,0.0003224,2]
[421798084,1778173840000,-16026.4,0.00032,7]
[421798088,1778173840000,-331.212,0.00032,120]
[421798098,1778173840000,-154.0,0.0003213,30]
[421798086,1778173840000,-5805.31096287,0.00032,120]
[421798102,1778173840000,-429.0,0.0003213,30]
[421798106,1778173840000,-154.0,0.0003213,30]
[421798108,1778173840000,-180.0,0.0003213,30]
[421798104,1778173840000,-157.0,0.0003213,30]
[421798110,1778173840000,-155.0,0.00032132,30]
[421798112,1778173840000,-152.0,0.00032132,30]
[421798113,1778173840000,-164.5,0.0003221,5]
[421798119,1778173840000,-322.0,0.0003224,2]
[421798121,1778173840000,-405.0,0.0003224,2]
[421798083,1778173840000,-1143.57,0.00032,14]
[421798186,1778173840000,-195.458427,0.00033,120]
[421798144,1778173840000,-2881.72833775,0.00032592,2]
[421798194,1778173840000,-150.0,0.00033119,7]
[421798245,1778173840000,-150.0,0.00033496,7]
[421798250,1778173840000,-274.39459472,0.000336,2]
[421798252,1778173840000,-150.0,0.00033622,7]
[421798254,1778173840000,-1700.0,0.000337,12]
[421798268,1778173840000,-203.3868328,0.00033804,60]
[421798264,1778173840000,-187.5,0.00033804,60]
[421798262,1778173840000,-191.216409,0.00033804,60]
[421798256,1778173840000,-150.0,0.00033748,7]
[421798258,1778173840000,-300.0,0.000338,12]
[421798266,1778173840000,-261.2811879,0.00033804,60]
[421798260,1778173840000,-300.4101434,0.00033804,60]
[421798283,1778173840000,-279.53402724,0.000339,120]
[421798248,1778173840000,-2000.0,0.000336,7]
[421798287,1778173840000,-185.2344615,0.000339,120]
[421798281,1778173840000,-10000.0,0.000339,2]
[421798289,1778173840000,-199.98690457,0.000339,120]
[421798277,1778173840000,-150.0,0.00033874,7]
[421798275,1778173840000,-567.673,0.00033857,120]
[421798273,1778173840000,-500.0,0.00033857,120]
[421798279,1778173840000,-310.0,0.0003389,32]
[421798293,1778173840000,-516.03424731,0.000339,120]
[421798291,1778173840000,-192.91808237,0.000339,120]
[421798295,1778173840000,-376.36,0.000339,30]
[421798297,1778173840000,-4341.29675173,0.000339,2]
[421798300,1778173840000,-2881.72833775,0.000339,2]
[421798175,1778173840000,-199.98690457,0.00033,120]
[421798285,1778173840000,-1442.29936822,0.000339,120]
[421798246,1778173840000,-500.0,0.00033583,120]
[421798270,1778173840000,-250.0,0.00033808,7]
[421798234,1778173840000,-150.0,0.00033244,7]
[421798195,1778173840000,-154.0,0.0003313,30]
[421798242,1778173840000,-200.53352621,0.00033412,2]
[421798181,1778173840000,-3117.92160848,0.00033,120]
[421798177,1778173840000,-192.91808237,0.00033,120]
[421798180,1778173840000,-516.03424731,0.00033,120]
[421798199,1778173840000,-429.0,0.0003313,30]
[421798202,1778173840000,-157.0,0.0003313,30]
[421798204,1778173840000,-154.0,0.0003313,30]
[421798206,1778173840000,-180.0,0.0003313,30]
[421798218,1778173840000,-200.0,0.00033158,2]
[421798213,1778173840000,-150.0,0.0003315,7]
[421798208,1778173840000,-155.0,0.00033132,30]
[421798210,1778173840000,-152.0,0.00033132,30]
[421798197,1778173840000,-283.0,0.0003313,30]
[421798216,1778173840000,-398.0,0.00033151,30]
[421798233,1778173840000,-330.0,0.00033158,2]
[421798212,1778173840000,-1192.09539056,0.00033142,2]
[421798227,1778173840000,-200.0,0.00033158,2]
[421798229,1778173840000,-200.0,0.00033158,2]
[421798240,1778173840000,-151.0,0.00033412,2]
[421798236,1778173840000,-503.0,0.00033304,8]
[421798238,1778173840000,-150.0,0.0003337,7]
[421798299,1778173840000,-300.0,0.000339,12]
[421798225,1778173840000,-200.0,0.00033158,2]